Workbook

Sheet Pasiūlymas
A2: PIRKIMO SĄLYGŲ PRIEDAS "PASIŪLYMŲ FORMA"
A4: RENTGENO DIAGNOSTIKOS ĮRANGOS TECHNINĖS PRIEŽIŪROS PASLAUGOS
A6: Kam: | B6: VšĮ LSMU Kauno ligoninė
A8: Data: | B8: 2022-07-05
A9: Nr.: | B9: KD22-161
A10: Vieta: | B10: Panevžys
A12: Tiekėjo pavadinimas / Ūkio subjektų grupės nariai: | C12: UAB "Graina"
A13: Tiekėjo kodas (-ai): | C13: 147736647
A14: Tiekėjo adresas (-ai): | C14: Durpyno g. 22, LT-36237 Panevėžys
A15: Tiekėjo PVM mokėtojo kodas(-ai): | C15: LT477366410
A16: Tiekėjo / Ūkio subjektų grupės atsakingo partnerio sąskaitos numeris, banko pavadinimas ir banko kodas (-ai): | C16: a.s. LT587181500044467652, AB Šiaulių bankas, Panevėžio KAC, b.k. 71815
A17: Asmens atsakingo už pasiūlymą vardas, pavardė: | C17: Administratorė VP specialistė Vilma Gudonienė
A18: Asmens atsakingo už pasiūlymą telefono numeris, el. pašto adresas: | C18: (8 45) 507798, v.gudoniene@graina.lt
A19: Tiekėjo / Ūkio subjektų grupės, laimėjimo atveju, pasirašančio sutartį asmens vardas, pavardė, pareigos: | C19: Direktorius Arūnas Padvariškis
A20: Tiekėjo / Ūkio subjektų grupės, laimėjimo atveju, už sutarties vykdymą atsakingo asmens vardas, pavardė, telefono numeris, elektroninio pašto adresas: | C20: Technikos direktorius Gintaras Mikelionis, tel. 8 45 570605, mob. 8 611 51205, el.paštas: g.mikelionis@graina.lt
A21: (1) Tiekėjo / Ūkio subjektų grupės narių, (2) ūkio subjektų, kurių pajėgumais remiamasi, ir (3) jei pašalinimo pagrindai taikomi visiems subtiekėjams - subtiekėjų, kolegialaus priežiūros organo (Stebėtojų tarybos) ir (ar) kolegialaus valdymo organo (Valdybos) narių sąrašas (jei sudaryta) ir (ar) asmuo, kuriam suteikti VPĮ 46 str. 2 d. 2 p. numatyti įgaliojimai | C21: - | G21: =IF((SUMPRODUCT(--(C21=""))>0), "Privaloma užpildyti, kai taikomi pašalinimo pagrindai", "") -> 
A23: Tiekėjo patvirtinimai:
A24: 1. Šiuo pasiūlymu pažymime, kad sutinkame su visomi pirkimo sąlygomis, nustatytomis:
A25: 1.1. viešojo pirkimo dokumentuose
A26: 1.2. kituose pirkimo dokumentuose (jų paaiškinimuose, papildymuose).
A27: 2. Patvirtiname, kad informacija ir duomenys, pateikti pasiūlyme, yra teisingi ir apima viską, ko reikia tinkamam sutarties įvykdymui
A28: 3. Patvirtiname, kad jei pasiūlyme nenurodyti kolegialaus priežiūros/valdymo organų nariai, šie organai juridiniuose asmenyse nėra sudaryti (taikoma, kai pirkimo dokumentuose nustatyti pašalinimo pagrindai).
A29: 4. Pasiūlymas galioja iki termino, nustatyto pirkimo dokumentuose.
A30: 5. Tais atvejais, kai pagal galiojančius teisės aktus tiekėjui nereikia mokėti PVM, jis nurodo priežastis, dėl kurių PVM nemoka:
A31: 6. Tiekėjas kainas pateikia, nurodydamas ne daugiau skaičių po kablelio, nei leidžiama pirkimo dokumentuose.
A32: 1. DALIS | B32: SHIMADZU RADSPEED MC STACIONARIOS RENTGENO DIAGNOSTINĖS SISTEMOS (2008 M.) TECHNINĖ PRIEŽIŪRA IR REMONTAS
A34: Tiekėjo pasiūlymas:
A35: Nr. | B35: Pavadinimas | C35: Kiekis | D35: Mato vienetas | E35: Kaina be PVM, Eur | F35: Suma be PVM, Eur
A36: 1. | B36: Shimadzu Radspeed MC stacionarios rentgeno diagnostinės sistemos (2008 m.) techninė priežiūra ir remontas
A37: 1.1. | B37: Techninė priežiūra kartą per 3 mėn. | C37: 8 | D37: vnt. | E37: 580 | F37: =IF(ISBLANK(E37),"", PRODUCT(C37,E37)) -> 4640
A38: 1.2. | B38: Remonto valandinis įkainis | C38: 18 | D38: val. | E38: 50 | F38: =IF(ISBLANK(E38),"", PRODUCT(C38,E38)) -> 900
E39: Suma be PVM | F39: =IF((SUMPRODUCT(--(F37:F38=""))>0), "", SUM(F37:F38)) -> 5540 | G39: =IF((SUMPRODUCT(--(F37:F38=""))>0), "Neužpildytos visų objektų kainos", "") -> 
E40: PVM suma | F40: 1163.4
E41: Suma su PVM | F41: =IF(ISBLANK(F40), "", SUM(F39:F40)) -> 6703.4
A45: 2. DALIS | B45: SHIMADZU RADSPEED MC STACIONARIOS, SKAITMENINĖS RENTGENO DIAGNOSTINĖS SISTEMOS (2010 M.) TECHNINĖ PRIEŽIŪRA IR REMONTAS
A47: Tiekėjo pasiūlymas:
A48: Nr. | B48: Pavadinimas | C48: Kiekis | D48: Mato vienetas | E48: Kaina be PVM, Eur | F48: Suma be PVM, Eur
A49: 2. | B49: Shimadzu Radspeed MC stacionarios, skaitmeninės rentgeno diagnostinės sistemos (2010 m.) techninė priežiūra ir remontas
A50: 2.1. | B50: Techninė priežiūra kartą per 3 mėn. | C50: 8 | D50: vnt. | E50: 870 | F50: =IF(ISBLANK(E50),"", PRODUCT(C50,E50)) -> 6960
A51: 2.2. | B51: Remonto valandinis įkainis | C51: 12 | D51: val. | E51: 50 | F51: =IF(ISBLANK(E51),"", PRODUCT(C51,E51)) -> 600
E52: Suma be PVM | F52: =IF((SUMPRODUCT(--(F50:F51=""))>0), "", SUM(F50:F51)) -> 7560 | G52: =IF((SUMPRODUCT(--(F50:F51=""))>0), "Neužpildytos visų objektų kainos", "") -> 
E53: PVM suma | F53: 1587.6
E54: Suma su PVM | F54: =IF(ISBLANK(F53), "", SUM(F52:F53)) -> 9147.6
A58: 3. DALIS | B58: SHIMADZU RADSPEED PRO STACIONARIOS, SKAITMENINĖS RENTGENO DIAGNOSTINĖS SISTEMOS (2016 M.) TECHNINĖ PRIEŽIŪRA IR REMONTAS
A60: Tiekėjo pasiūlymas:
A61: Nr. | B61: Pavadinimas | C61: Kiekis | D61: Mato vienetas | E61: Kaina be PVM, Eur | F61: Suma be PVM, Eur
A62: 3. | B62: Shimadzu Radspeed Pro stacionarios, skaitmeninės rentgeno diagnostinės sistemos (2016 m.) techninė priežiūra ir remontas
A63: 3.1. | B63: Techninė priežiūra kartą per 3 mėn. | C63: 8 | D63: vnt. | E63: 870 | F63: =IF(ISBLANK(E63),"", PRODUCT(C63,E63)) -> 6960
A64: 3.2. | B64: Remonto valandinis įkainis | C64: 12 | D64: val. | E64: 50 | F64: =IF(ISBLANK(E64),"", PRODUCT(C64,E64)) -> 600
E65: Suma be PVM | F65: =IF((SUMPRODUCT(--(F63:F64=""))>0), "", SUM(F63:F64)) -> 7560 | G65: =IF((SUMPRODUCT(--(F63:F64=""))>0), "Neužpildytos visų objektų kainos", "") -> 
E66: PVM suma | F66: 1587.6
E67: Suma su PVM | F67: =IF(ISBLANK(F66), "", SUM(F65:F66)) -> 9147.6
A71: 4. DALIS | B71: VILLA MERCURY 332 STACIONARIOS RENTGENO DIAGNOSTINĖS SISTEMOS (2001 M.) TECHNINĖ PRIEŽIŪRA IR REMONTAS
A73: Tiekėjo pasiūlymas:
A74: Nr. | B74: Pavadinimas | C74: Kiekis | D74: Mato vienetas | E74: Kaina be PVM, Eur | F74: Suma be PVM, Eur
A75: 4. | B75: Villa Mercury 332 stacionarios rentgeno diagnostinės sistemos (2001 m.) techninė priežiūra ir remontas
A76: 4.1. | B76: Techninė priežiūra kartą per 3 mėn. | C76: 8 | D76: vnt. | F76: =IF(ISBLANK(E76),"", PRODUCT(C76,E76)) -> 
A77: 4.2. | B77: Remonto valandinis įkainis | C77: 12 | D77: val. | F77: =IF(ISBLANK(E77),"", PRODUCT(C77,E77)) -> 
E78: Suma be PVM | F78: =IF((SUMPRODUCT(--(F76:F77=""))>0), "", SUM(F76:F77)) ->  | G78: =IF((SUMPRODUCT(--(F76:F77=""))>0), "Neužpildytos visų objektų kainos", "") -> Neužpildytos visų objektų kainos
E79: PVM suma
E80: Suma su PVM | F80: =IF(ISBLANK(F79), "", SUM(F78:F79)) -> 
A84: 5. DALIS | B84: SIEMENS MULTIX PRO STACIONARIOS RENTGENO DIAGNOSTINĖS SISTEMOS (2006 M.) TECHNINĖ PRIEŽIŪRA IR REMONTAS
A86: Tiekėjo pasiūlymas:
A87: Nr. | B87: Pavadinimas | C87: Kiekis | D87: Mato vienetas | E87: Kaina be PVM, Eur | F87: Suma be PVM, Eur
A88: 5. | B88: Siemens Multix Pro stacionarios rentgeno diagnostinės sistemos (2006 m.) techninė priežiūra ir remontas
A89: 5.1. | B89: Techninė priežiūra kartą per 3 mėn. | C89: 8 | D89: vnt. | F89: =IF(ISBLANK(E89),"", PRODUCT(C89,E89)) -> 
A90: 5.2. | B90: Remonto valandinis įkainis | C90: 12 | D90: val. | F90: =IF(ISBLANK(E90),"", PRODUCT(C90,E90)) -> 
E91: Suma be PVM | F91: =IF((SUMPRODUCT(--(F89:F90=""))>0), "", SUM(F89:F90)) ->  | G91: =IF((SUMPRODUCT(--(F89:F90=""))>0), "Neužpildytos visų objektų kainos", "") -> Neužpildytos visų objektų kainos
E92: PVM suma
E93: Suma su PVM | F93: =IF(ISBLANK(F92), "", SUM(F91:F92)) -> 
A97: 6. DALIS | B97: PHILIPS DIGITALDIAGNOST C90 STACIONARIOS, SKAITMENINĖS RENTGENO DIAGNOSTINĖS SISTEMOS (2020 M.) TECHNINĖ PRIEŽIŪRA IR REMONTAS
A99: Tiekėjo pasiūlymas:
A100: Nr. | B100: Pavadinimas | C100: Kiekis | D100: Mato vienetas | E100: Kaina be PVM, Eur | F100: Suma be PVM, Eur
A101: 6. | B101: Philips DigitalDiagnost C90 stacionarios, skaitmeninės rentgeno diagnostinės sistemos (2020 m.) techninė priežiūra ir remontas
A102: 6.1. | B102: Techninė priežiūra kartą per 3 mėn. | C102: 14 | D102: vnt. | F102: =IF(ISBLANK(E102),"", PRODUCT(C102,E102)) -> 
A103: 6.2. | B103: Remonto valandinis įkainis | C103: 12 | D103: val. | F103: =IF(ISBLANK(E103),"", PRODUCT(C103,E103)) -> 
E104: Suma be PVM | F104: =IF((SUMPRODUCT(--(F102:F103=""))>0), "", SUM(F102:F103)) ->  | G104: =IF((SUMPRODUCT(--(F102:F103=""))>0), "Neužpildytos visų objektų kainos", "") -> Neužpildytos visų objektų kainos
E105: PVM suma
E106: Suma su PVM | F106: =IF(ISBLANK(F105), "", SUM(F104:F105)) -> 
A110: 7. DALIS | B110: SIEMENS POLIMOBIL PLUS MOBILIOS RENTGENO DIAGNOSTINĖS SISTEMOS (2007 M.) TECHNINĖ PRIEŽIŪRA IR REMONTAS
A112: Tiekėjo pasiūlymas:
A113: Nr. | B113: Pavadinimas | C113: Kiekis | D113: Mato vienetas | E113: Kaina be PVM, Eur | F113: Suma be PVM, Eur
A114: 7. | B114: Siemens Polimobil Plus mobilios rentgeno diagnostinės sistemos (2007 m.) techninė priežiūra ir remontas
A115: 7.1. | B115: Techninė priežiūra kartą per 3 mėn. | C115: 8 | D115: vnt. | F115: =IF(ISBLANK(E115),"", PRODUCT(C115,E115)) -> 
A116: 7.2. | B116: Remonto valandinis įkainis | C116: 8 | D116: val. | F116: =IF(ISBLANK(E116),"", PRODUCT(C116,E116)) -> 
E117: Suma be PVM | F117: =IF((SUMPRODUCT(--(F115:F116=""))>0), "", SUM(F115:F116)) ->  | G117: =IF((SUMPRODUCT(--(F115:F116=""))>0), "Neužpildytos visų objektų kainos", "") -> Neužpildytos visų objektų kainos
E118: PVM suma
E119: Suma su PVM | F119: =IF(ISBLANK(F118), "", SUM(F117:F118)) -> 
A123: 8. DALIS | B123: STEPHANIX MOVIX 4.0 E+ MOBILIOS RENTGENO DIAGNOSTINĖS SISTEMOS (2016 M.) TECHNINĖ PRIEŽIŪRA IR REMONTAS
A125: Tiekėjo pasiūlymas:
A126: Nr. | B126: Pavadinimas | C126: Kiekis | D126: Mato vienetas | E126: Kaina be PVM, Eur | F126: Suma be PVM, Eur
A127: 8. | B127: Stephanix Movix 4.0 E+ mobilios rentgeno diagnostinės sistemos (2016 m.) techninė priežiūra ir remontas
A128: 8.1. | B128: Techninė priežiūra kartą per 3 mėn. | C128: 8 | D128: vnt. | F128: =IF(ISBLANK(E128),"", PRODUCT(C128,E128)) -> 
A129: 8.2. | B129: Remonto valandinis įkainis | C129: 12 | D129: val. | F129: =IF(ISBLANK(E129),"", PRODUCT(C129,E129)) -> 
E130: Suma be PVM | F130: =IF((SUMPRODUCT(--(F128:F129=""))>0), "", SUM(F128:F129)) ->  | G130: =IF((SUMPRODUCT(--(F128:F129=""))>0), "Neužpildytos visų objektų kainos", "") -> Neužpildytos visų objektų kainos
E131: PVM suma
E132: Suma su PVM | F132: =IF(ISBLANK(F131), "", SUM(F130:F131)) -> 
A136: 9. DALIS | B136: RADIOLOGIA TRASPORTIX TX PLUS 4 MOBILAUS RENTGENO DIAGNOSTINĖS SISTEMOS (2012 M.) TECHNINĖ PRIEŽIŪRA IR REMONTAS
A138: Tiekėjo pasiūlymas:
A139: Nr. | B139: Pavadinimas | C139: Kiekis | D139: Mato vienetas | E139: Kaina be PVM, Eur | F139: Suma be PVM, Eur
A140: 9. | B140: Radiologia Trasportix TX Plus 4 mobilaus rentgeno diagnostinės sistemos (2012 m.) techninė priežiūra ir remontas
A141: 9.1. | B141: Techninė priežiūra kartą per 3 mėn. | C141: 8 | D141: vnt. | F141: =IF(ISBLANK(E141),"", PRODUCT(C141,E141)) -> 
A142: 9.2. | B142: Remonto valandinis įkainis | C142: 12 | D142: val. | F142: =IF(ISBLANK(E142),"", PRODUCT(C142,E142)) -> 
E143: Suma be PVM | F143: =IF((SUMPRODUCT(--(F141:F142=""))>0), "", SUM(F141:F142)) ->  | G143: =IF((SUMPRODUCT(--(F141:F142=""))>0), "Neužpildytos visų objektų kainos", "") -> Neužpildytos visų objektų kainos
E144: PVM suma
E145: Suma su PVM | F145: =IF(ISBLANK(F144), "", SUM(F143:F144)) -> 
A149: 10. DALIS | B149: RADIOLOGIA TRANSPORTIX B TX-32HF MOBILIOS, SKAITMENINĖS RENTGENO DIAGNOSTINĖS SISTEMOS (2019 M.) TECHNINĖ PRIEŽIŪRA IR REMONTAS
A151: Tiekėjo pasiūlymas:
A152: Nr. | B152: Pavadinimas | C152: Kiekis | D152: Mato vienetas | E152: Kaina be PVM, Eur | F152: Suma be PVM, Eur
A153: 10. | B153: Radiologia Transportix B TX-32HF mobilios, skaitmeninės rentgeno diagnostinės sistemos (2019 m.) techninė priežiūra ir remontas
A154: 10.1. | B154: Techninė priežiūra kartą per 3 mėn. | C154: 8 | D154: vnt. | F154: =IF(ISBLANK(E154),"", PRODUCT(C154,E154)) -> 
A155: 10.2. | B155: Remonto valandinis įkainis | C155: 12 | D155: val. | F155: =IF(ISBLANK(E155),"", PRODUCT(C155,E155)) -> 
E156: Suma be PVM | F156: =IF((SUMPRODUCT(--(F154:F155=""))>0), "", SUM(F154:F155)) ->  | G156: =IF((SUMPRODUCT(--(F154:F155=""))>0), "Neužpildytos visų objektų kainos", "") -> Neužpildytos visų objektų kainos
E157: PVM suma
E158: Suma su PVM | F158: =IF(ISBLANK(F157), "", SUM(F156:F157)) -> 
A162: 11. DALIS | B162: TMS-15 MOBILAUS RENTGENO DIAGNOSTINĖS SISTEMOS (2012 M.) TECHNINĖ PRIEŽIŪRA IR REMONTAS
A164: Tiekėjo pasiūlymas:
A165: Nr. | B165: Pavadinimas | C165: Kiekis | D165: Mato vienetas | E165: Kaina be PVM, Eur | F165: Suma be PVM, Eur
A166: 11. | B166: TMS-15 mobilaus rentgeno diagnostinės sistemos (2012 m.) techninė priežiūra ir remontas
A167: 11.1. | B167: Techninė priežiūra kartą per 3 mėn. | C167: 8 | D167: vnt. | F167: =IF(ISBLANK(E167),"", PRODUCT(C167,E167)) -> 
A168: 11.2. | B168: Remonto valandinis įkainis | C168: 12 | D168: val. | F168: =IF(ISBLANK(E168),"", PRODUCT(C168,E168)) -> 
E169: Suma be PVM | F169: =IF((SUMPRODUCT(--(F167:F168=""))>0), "", SUM(F167:F168)) ->  | G169: =IF((SUMPRODUCT(--(F167:F168=""))>0), "Neužpildytos visų objektų kainos", "") -> Neužpildytos visų objektų kainos
E170: PVM suma
E171: Suma su PVM | F171: =IF(ISBLANK(F170), "", SUM(F169:F170)) -> 
A175: 12. DALIS | B175: PHILIPS BV ENDURA 9 KILNOJAMO C LANKO RENTGENO DIAGNOSTINĖS SISTEMOS (2007 M.) TECHNINĖ PRIEŽIŪRA IR REMONTAS
A177: Tiekėjo pasiūlymas:
A178: Nr. | B178: Pavadinimas | C178: Kiekis | D178: Mato vienetas | E178: Kaina be PVM, Eur | F178: Suma be PVM, Eur
A179: 12. | B179: Philips BV Endura 9 kilnojamo c lanko rentgeno diagnostinės sistemos (2007 m.) techninė priežiūra ir remontas
A180: 12.1. | B180: Techninė priežiūra kartą per 3 mėn. | C180: 8 | D180: vnt. | F180: =IF(ISBLANK(E180),"", PRODUCT(C180,E180)) -> 
A181: 12.2. | B181: Remonto valandinis įkainis | C181: 12 | D181: val. | F181: =IF(ISBLANK(E181),"", PRODUCT(C181,E181)) -> 
E182: Suma be PVM | F182: =IF((SUMPRODUCT(--(F180:F181=""))>0), "", SUM(F180:F181)) ->  | G182: =IF((SUMPRODUCT(--(F180:F181=""))>0), "Neužpildytos visų objektų kainos", "") -> Neužpildytos visų objektų kainos
E183: PVM suma
E184: Suma su PVM | F184: =IF(ISBLANK(F183), "", SUM(F182:F183)) -> 
A188: 13. DALIS | B188: VILLA ARCOVIS 3000 S KILNOJAMO C LANKO RENTGENO DIAGNOSTINĖS SISTEMOS (2012 M.) TECHNINĖ PRIEŽIŪRA IR REMONTAS
A190: Tiekėjo pasiūlymas:
A191: Nr. | B191: Pavadinimas | C191: Kiekis | D191: Mato vienetas | E191: Kaina be PVM, Eur | F191: Suma be PVM, Eur
A192: 13. | B192: Villa Arcovis 3000 S kilnojamo c lanko rentgeno diagnostinės sistemos (2012 m.) techninė priežiūra ir remontas
A193: 13.1. | B193: Techninė priežiūra kartą per 3 mėn. | C193: 8 | D193: vnt. | F193: =IF(ISBLANK(E193),"", PRODUCT(C193,E193)) -> 
A194: 13.2. | B194: Remonto valandinis įkainis | C194: 8 | D194: val. | F194: =IF(ISBLANK(E194),"", PRODUCT(C194,E194)) -> 
E195: Suma be PVM | F195: =IF((SUMPRODUCT(--(F193:F194=""))>0), "", SUM(F193:F194)) ->  | G195: =IF((SUMPRODUCT(--(F193:F194=""))>0), "Neužpildytos visų objektų kainos", "") -> Neužpildytos visų objektų kainos
E196: PVM suma
E197: Suma su PVM | F197: =IF(ISBLANK(F196), "", SUM(F195:F196)) -> 
A201: 14. DALIS | B201: SIMAD MOONRAY-R KILNOJAMO C LANKO RENTGENO DIAGNOSTINĖS SISTEMOS (2015 M.) TECHNINĖ PRIEŽIŪRA IR REMONTAS
A203: Tiekėjo pasiūlymas:
A204: Nr. | B204: Pavadinimas | C204: Kiekis | D204: Mato vienetas | E204: Kaina be PVM, Eur | F204: Suma be PVM, Eur
A205: 14. | B205: Simad Moonray-R kilnojamo c lanko rentgeno diagnostinės sistemos (2015 m.) techninė priežiūra ir remontas
A206: 14.1. | B206: Techninė priežiūra kartą per 3 mėn. | C206: 8 | D206: vnt. | F206: =IF(ISBLANK(E206),"", PRODUCT(C206,E206)) -> 
A207: 14.2. | B207: Remonto valandinis įkainis | C207: 8 | D207: val. | F207: =IF(ISBLANK(E207),"", PRODUCT(C207,E207)) -> 
E208: Suma be PVM | F208: =IF((SUMPRODUCT(--(F206:F207=""))>0), "", SUM(F206:F207)) ->  | G208: =IF((SUMPRODUCT(--(F206:F207=""))>0), "Neužpildytos visų objektų kainos", "") -> Neužpildytos visų objektų kainos
E209: PVM suma
E210: Suma su PVM | F210: =IF(ISBLANK(F209), "", SUM(F208:F209)) -> 
A214: 15. DALIS | B214: PHILIPS ZENITION 70 SKAITMENINIO, KILNOJAMO C LANKO RENTGENO DIAGNOSTINĖS SISTEMOS (2020 M.) TECHNINĖ PRIEŽIŪRA IR REMONTAS
A216: Tiekėjo pasiūlymas:
A217: Nr. | B217: Pavadinimas | C217: Kiekis | D217: Mato vienetas | E217: Kaina be PVM, Eur | F217: Suma be PVM, Eur
A218: 15. | B218: Philips Zenition 70 skaitmeninio, kilnojamo c lanko rentgeno diagnostinės sistemos (2020 m.) techninė priežiūra ir remontas
A219: 15.1. | B219: Techninė priežiūra kartą per 3 mėn. | C219: 21 | D219: vnt. | F219: =IF(ISBLANK(E219),"", PRODUCT(C219,E219)) -> 
A220: 15.2. | B220: Remonto valandinis įkainis | C220: 12 | D220: val. | F220: =IF(ISBLANK(E220),"", PRODUCT(C220,E220)) -> 
E221: Suma be PVM | F221: =IF((SUMPRODUCT(--(F219:F220=""))>0), "", SUM(F219:F220)) ->  | G221: =IF((SUMPRODUCT(--(F219:F220=""))>0), "Neužpildytos visų objektų kainos", "") -> Neužpildytos visų objektų kainos
E222: PVM suma
E223: Suma su PVM | F223: =IF(ISBLANK(F222), "", SUM(F221:F222)) -> 
A227: 16. DALIS | B227: GE OEC 9900 ELITE KILNOJAMO C LANKO RENTGENO DIAGNOSTINĖS SISTEMOS (2014 M.) TECHNINĖ PRIEŽIŪRA IR REMONTAS
A229: Tiekėjo pasiūlymas:
A230: Nr. | B230: Pavadinimas | C230: Kiekis | D230: Mato vienetas | E230: Kaina be PVM, Eur | F230: Suma be PVM, Eur
A231: 16. | B231: GE OEC 9900 Elite kilnojamo c lanko rentgeno diagnostinės sistemos (2014 m.) techninė priežiūra ir remontas
A232: 16.1. | B232: Techninė priežiūra kartą per 3 mėn. | C232: 8 | D232: vnt. | F232: =IF(ISBLANK(E232),"", PRODUCT(C232,E232)) -> 
A233: 16.2. | B233: Remonto valandinis įkainis | C233: 12 | D233: val. | F233: =IF(ISBLANK(E233),"", PRODUCT(C233,E233)) -> 
E234: Suma be PVM | F234: =IF((SUMPRODUCT(--(F232:F233=""))>0), "", SUM(F232:F233)) ->  | G234: =IF((SUMPRODUCT(--(F232:F233=""))>0), "Neužpildytos visų objektų kainos", "") -> Neužpildytos visų objektų kainos
E235: PVM suma
E236: Suma su PVM | F236: =IF(ISBLANK(F235), "", SUM(F234:F235)) -> 
A240: 17. DALIS | B240: GE SENOGRAPHE CRYSTAL SKAITMENINĖS MAMOGRAFIJOS SISTEMOS (2017 M.) TECHNINĖ PRIEŽIŪRA IR REMONTAS
A242: Tiekėjo pasiūlymas:
A243: Nr. | B243: Pavadinimas | C243: Kiekis | D243: Mato vienetas | E243: Kaina be PVM, Eur | F243: Suma be PVM, Eur
A244: 17. | B244: GE Senographe Crystal skaitmeninės mamografijos sistemos (2017 m.) techninė priežiūra ir remontas
A245: 17.1. | B245: Techninė priežiūra kartą per 3 mėn. | C245: 8 | D245: vnt. | F245: =IF(ISBLANK(E245),"", PRODUCT(C245,E245)) -> 
A246: 17.2. | B246: Remonto valandinis įkainis | C246: 8 | D246: val. | F246: =IF(ISBLANK(E246),"", PRODUCT(C246,E246)) -> 
E247: Suma be PVM | F247: =IF((SUMPRODUCT(--(F245:F246=""))>0), "", SUM(F245:F246)) ->  | G247: =IF((SUMPRODUCT(--(F245:F246=""))>0), "Neužpildytos visų objektų kainos", "") -> Neužpildytos visų objektų kainos
E248: PVM suma
E249: Suma su PVM | F249: =IF(ISBLANK(F248), "", SUM(F247:F248)) -> 
A253: 18. DALIS | B253: HOLOGIC DISCOVERY QDR 4500 CI KAULŲ TANKIO MATAVIMO SISTEMOS (2011 M.) TECHNINĖ PRIEŽIŪRA IR REMONTAS
A255: Tiekėjo pasiūlymas:
A256: Nr. | B256: Pavadinimas | C256: Kiekis | D256: Mato vienetas | E256: Kaina be PVM, Eur | F256: Suma be PVM, Eur
A257: 18. | B257: Hologic DISCOVERY QDR 4500 Ci kaulų tankio matavimo sistemos (2011 m.) techninė priežiūra ir remontas
A258: 18.1. | B258: Techninė priežiūra kartą per 3 mėn. | C258: 8 | D258: vnt. | E258: 635 | F258: =IF(ISBLANK(E258),"", PRODUCT(C258,E258)) -> 5080
A259: 18.2. | B259: Remonto valandinis įkainis | C259: 8 | D259: val. | E259: 50 | F259: =IF(ISBLANK(E259),"", PRODUCT(C259,E259)) -> 400
E260: Suma be PVM | F260: =IF((SUMPRODUCT(--(F258:F259=""))>0), "", SUM(F258:F259)) -> 5480 | G260: =IF((SUMPRODUCT(--(F258:F259=""))>0), "Neužpildytos visų objektų kainos", "") -> 
E261: PVM suma | F261: 1150.8
E262: Suma su PVM | F262: =IF(ISBLANK(F261), "", SUM(F260:F261)) -> 6630.8
A266: 19. DALIS | B266: GE OPTIMA CT660 KOMPIUTERINĖS TOMOGRAFIJOS SISTEMOS (2011 M.) TECHNINĖ PRIEŽIŪRA IR REMONTAS
A268: Tiekėjo pasiūlymas:
A269: Nr. | B269: Pavadinimas | C269: Kiekis | D269: Mato vienetas | E269: Kaina be PVM, Eur | F269: Suma be PVM, Eur
A270: 19. | B270: GE OPTIMA CT660 kompiuterinės tomografijos sistemos (2011 m.) techninė priežiūra ir remontas
A271: 19.1. | B271: Techninė priežiūra kartą per 3 mėn. | C271: 8 | D271: vnt. | F271: =IF(ISBLANK(E271),"", PRODUCT(C271,E271)) -> 
A272: 19.2. | B272: Remonto valandinis įkainis | C272: 18 | D272: val. | F272: =IF(ISBLANK(E272),"", PRODUCT(C272,E272)) -> 
E273: Suma be PVM | F273: =IF((SUMPRODUCT(--(F271:F272=""))>0), "", SUM(F271:F272)) ->  | G273: =IF((SUMPRODUCT(--(F271:F272=""))>0), "Neužpildytos visų objektų kainos", "") -> Neužpildytos visų objektų kainos
E274: PVM suma
E275: Suma su PVM | F275: =IF(ISBLANK(F274), "", SUM(F273:F274)) -> 
A279: 20. DALIS | B279: PHILIPS INGENUITY KOMPIUTERINĖS TOMOGRAFIJOS SISTEMOS (2011 M.) TECHNINĖ PRIEŽIŪRA IR REMONTAS
A281: Tiekėjo pasiūlymas:
A282: Nr. | B282: Pavadinimas | C282: Kiekis | D282: Mato vienetas | E282: Kaina be PVM, Eur | F282: Suma be PVM, Eur
A283: 20. | B283: Philips Ingenuity kompiuterinės tomografijos sistemos (2011 m.) techninė priežiūra ir remontas
... 41 more rows

Sheet Subtiekėjai ir priedai
A2: Ūkio subjektai (įskaitant kvazisubtiekėjus - fiziniai asmenys, kuriuos ketinama įdarbinti pirkimo laimėjimo atveju), kurių pajėgumais tiekėjas remiasi, kad atitiktų keliamus kvalifikacijos reikalavimus:
A5: Pavadinimas* | C5: Kodas, adresas | F5: Perduodami įsipareigojimai | I5: Perduodamų įsipareigojimų dalis nuo visos pirkimo sutarties (Eur arba %) | K5: Kval. Reikalavimo Nr.
A6: - | C6: - | F6: - | I6: - | K6: -
A17: Subtiekėjams / subteikėjams / subrangovams numatomos perduoti veiklos (privaloma nurodyti) ir šių ūkio subjektų pavadinimai (jei žinomi):
A19: Pavadinimas | C19: Kodas, adresas | F19: Perduodama veikla* | I19: Perduodamos veiklos dalis nuo visos pirkimo sutarties (Eur arba %)
A20: - | C20: - | F20: - | I20: -
A33: Kartu su pasiūlymu pateikiami šie dokumentai:
A35: Nr. | B35: Dokumento pavadinimas | H35: Dokumentas yra konfidencialus? Taip/Ne
A36: 1 | B36: Jungtinės veiklos kopija (jei taikoma) | H36: netaikoma
A37: 2 | B37: Europos bendrasis viešųjų pirkimų dokumentas | H37: Ne
A38: 3 | B38: Subtiekimo sutartis, ketinimų protokolas, preliminarios sutartys ar kiti dokumentai, patvirtinantys, kad laimėjus pirkimą tiekėjui bus prieinami kitų ūkio subjektų ištekliai (jei pasitelkiami kvalifikacijos atitikimui) | H38: Nataikoma
A39: 4 | B39: RSC Licencija | H39: Taip
A40: 5 | B40: Įgaliojimas pasirašyti dokumentus | H40: Ne
A48: Pasiūlyme nurodyta Prekės kaina, išskyrus jos sudedamąsias dalis, subtiekėjai, taip pat kita informacija, kuri teisės aktų nustatyta tvarka turi būti skelbiama arba kitokiu būdu viešai prieinama visuomenei, nėra laikoma konfidencialia informacija. Konfidencialią informaciją sudaro, visų pirma, komercinė (gamybinė) paslaptis ir konfidencialieji pasiūlymų aspektai. Informacija, kurią viešai skelbti įpareigoja Lietuvos Respublikos įstatymai, negali būti tiekėjo nurodoma kaip konfidenciali, todėl, tiekėjui nurodžius tokią informaciją kaip konfidencialią, perkančioji organizacija turi teisę ją skelbti. Jei tiekėjas nenurodo konfidencialios informacijos, laikoma, kad konfidencialios informacijos tiekėjo pasiūlyme nėra. Vadovaujantis Informacijos viešinimo Centrinėje viešųjų pirkimų informacinėje sistemoje tvarkos aprašu, patvirtintu Viešųjų pirkimų tarnybos direktoriaus 2017 m. birželio 19 d. įsakymu Nr. 1S-91 „Dėl Informacijos viešinimo Centrinėje viešųjų pirkimų informacinėje sistemoje tvarkos aprašo patvirtinimo“, perkančioji organizacija laimėjusio dalyvio pasiūlymą, išskyrus informaciją, kurią tiekėjas nurodė kaip konfidencialią, paskelbs CVP IS.
A51: Tiekėjo arba jo įgalioto asmens pareigų pavadinimas: | E51: Administratorė VP specialistė
A53: Pasirašančio asmens vardas ir pavardė: | E53: Vilma Gudonienė
A100: 6432 2022-05-27 10:13:04
